bitfinex-derivatives/quotes_ETHF0:USTF0_20240907
["timestamp","ask_amount","ask_price","bid_price","bid_amount"]
[1725708308133,7.80427455,2288.7,2288.5,0.3693]
[1725708308441,7.80427455,2288.7,2288.1,7.40444]
[1725708308442,0.43703,2288.5,2288.3,0.3866]
[1725708308735,3.43753721,2288.4,2288.3,1.6466]
[1725708309237,3.43753721,2288.4,2288.3,2.08367]
[1725708309435,3.43753721,2288.5,2288.4,0.43705]
[1725708309639,3.43753721,2288.6,2288.5,0.43703]
[1725708310126,3.43753721,2288.6,2288.5,4.80663]
[1725708310742,0.383,2288.8,2288.5,4.80663]
[1725708311041,0.383,2288.8,2288.6,1.6336]
[1725708311236,0.383,2288.8,2288.6,2.0245]
[1725708312040,0.81997,2288.8,2288.6,2.0245]
[1725708312237,0.82036,2288.9,2288.6,2.46151]
[1725708312437,7.00383721,2289.0,2288.6,2.0245]
[1725708312627,3.5663,2289.0,2288.6,2.0245]
[1725708312832,3.5663,2289.0,2288.7,0.43699]
[1725708313637,4.00323,2289.0,2288.7,0.43699]
[1725708313838,3.5663,2289.0,2288.7,0.43699]
[1725708314148,4.00323,2289.0,2288.7,0.43699]
[1725708315239,3.5663,2289.0,2288.7,0.43699]
[1725708315437,4.00323,2289.0,2288.7,0.43699]
[1725708316043,0.79543,2289.0,2288.7,0.43699]
[1725708316239,4.00323,2289.0,2288.7,0.43699]
[1725708316641,3.5663,2289.0,2288.8,0.43696]
[1725708317043,3.5663,2289.0,2288.9,0.3747]
[1725708317552,4.00323,2289.0,2288.9,0.3747]
[1725708318343,4.25706721,2289.1,2288.9,0.3747]
[1725708318742,4.25706721,2289.1,2288.9,0.7635]
[1725708318939,3.43753721,2289.0,2288.9,0.7635]
[1725708322250,4.21373721,2289.2,2289.0,0.43693]
[1725708322449,4.21373721,2289.2,2289.0,2.06532]
[1725708322749,0.7762,2289.2,2289.0,2.06532]
[1725708324945,7.64580306,2289.3,2289.0,2.06532]
[1725708325152,0.776,2289.2,2289.0,2.06532]
[1725708325847,5.35365096,2289.2,2289.0,2.06532]
[1725708326053,4.01066904,2289.1,2289.0,1.26]
[1725708326245,4.57765096,2289.1,2288.9,1.6347]
[1725708326441,4.82111933,2289.0,2288.9,1.6347]
[1725708326746,0.81143,2289.0,2288.9,1.6347]
[1725708326947,5.38908096,2289.0,2288.9,1.6347]
[1725708328358,0.3745,2289.0,2288.9,1.6347]
[1725708329045,0.81143,2289.0,2288.9,1.6347]
[1725708331458,0.81143,2289.0,2288.9,1.26]
[1725708331661,5.38908096,2289.0,2288.9,1.26]
[1725708332653,0.43703,2288.6,2288.4,4.19664]
[1725708332960,0.3921,2288.5,2288.4,1.26]
[1725708333153,0.788,2288.5,2288.4,1.26]
[1725708334056,1.22503,2288.5,2288.4,1.26]
[1725708335951,0.788,2288.5,2288.4,1.26]
[1725708337052,1.22503,2288.5,2288.4,1.26]
[1725708337654,4.43283,2288.5,2288.4,1.26]
[1725708338965,3.9958,2288.5,2288.4,1.26]
[1725708340664,4.43283,2288.5,2288.4,1.26]
[1725708347365,0.43705,2288.4,2288.3,1.26]
[1725708347577,0.4371,2288.2,2288.1,1.26]
[1725708347864,3.6449,2288.2,2288.0,1.26]
[1725708348064,0.7475,2288.1,2288.0,1.26]
[1725708350962,0.3754,2288.1,2288.0,1.26]
[1725708353761,0.3637,2288.2,2288.0,1.69712]
[1725708355075,2.3525,2288.7,2288.3,0.43706]
[1725708355076,0.43699,2288.7,2288.3,0.43706]
[1725708355269,1.17341,2288.6,2288.5,1.26]
[1725708356167,4.38121,2288.6,2288.5,1.26]
[1725708358164,3.9442,2288.6,2288.5,1.26]
[1725708358361,0.7388,2288.8,2288.5,1.69703]
[1725708358563,0.7388,2288.8,2288.7,1.26]
[1725708358867,4.91376,2288.9,2288.7,1.26]
[1725708359063,4.91376,2288.9,2288.7,1.6224]
[1725708359269,4.91376,2288.9,2288.8,0.3663]
[1725708359466,0.80376,2288.9,2288.8,0.3663]
[1725708359775,0.3668,2288.9,2288.8,0.3663]
[1725708360368,3.5746,2288.9,2288.8,0.3663]
[1725708361070,4.01155,2288.9,2288.8,0.3663]
[1725708361366,4.01155,2288.9,2288.7,1.26]
[1725708361567,3.5746,2288.9,2288.7,1.26]
[1725708362472,4.01155,2288.9,2288.7,1.26]
[1725708362676,3.5746,2288.9,2288.7,1.26]
[1725708363573,4.01155,2288.9,2288.7,1.26]
[1725708364372,0.43697,2288.8,2288.7,1.26]
[1725708364566,3.5746,2288.9,2288.7,1.26]
[1725708364567,4.01156,2288.9,2288.7,1.26]
[1725708370084,3.5746,2288.9,2288.7,1.26]
[1725708370283,0.43697,2288.8,2288.7,1.26]
[1725708370487,4.01156,2288.9,2288.7,1.26]
[1725708370680,0.43697,2288.8,2288.7,1.26]
[1725708371077,0.43702,2288.6,2288.2,4.63371]
[1725708371285,1.1357,2288.5,2288.3,2.06196]
[1725708372586,3.2078,2288.9,2288.3,4.8327]
[1725708372780,3.2078,2288.9,2288.5,1.69703]
[1725708372781,0.83188,2288.8,2288.5,1.69703]
[1725708373490,0.83188,2288.8,2288.6,0.3624]
[1725708377596,0.43699,2288.7,2288.6,0.3624]
[1725708378186,4.44708082,2288.7,2288.6,0.3624]
[1725708379590,0.43699,2288.7,2288.6,0.3624]
[1725708379990,4.44454903,2288.7,2288.6,0.3624]
[1725708380293,0.43699,2288.7,2288.6,0.3624]
[1725708380591,0.43701,2288.6,2288.5,1.26]
[1725708380897,4.44462643,2288.6,2288.5,1.26]
[1725708381797,0.43703,2288.5,2288.4,1.26]
[1725708382092,1.57263,2288.5,2288.4,1.26]
[1725708383390,5.0079193,2288.5,2288.4,1.26]
[1725708386290,1.57263,2288.5,2288.4,1.26]
[1725708386995,0.43707,2288.3,2288.2,0.3959]
[1725708387295,0.4371,2288.2,2288.0,1.6238]
[1725708387493,0.8152,2288.2,2288.0,1.9837]
[1725708393199,0.8152,2288.2,2288.0,2.42082]
[1725708394302,0.8152,2288.2,2288.0,1.9837]
[1725708394501,0.8152,2288.2,2288.0,2.42082]
[1725708394892,0.8152,2288.2,2288.1,0.3767]
[1725708396202,0.7724,2288.5,2288.1,4.7471]
[1725708396403,0.7724,2288.5,2288.3,1.69705]
[1725708396404,0.43703,2288.5,2288.3,1.69705]
[1725708396702,0.43703,2288.5,2288.4,0.3742]
[1725708396910,0.43703,2288.5,2288.4,0.7373]
[1725708398704,0.43702,2288.6,2288.4,0.7373]
[1725708399002,0.43703,2288.5,2288.4,0.7373]
[1725708399305,3.64483,2288.5,2288.4,0.7373]
[1725708401005,3.2078,2288.5,2288.4,0.7373]
[1725708403801,3.64483,2288.5,2288.4,0.7373]
[1725708404202,4.39163,2288.5,2288.4,0.7373]
[1725708404501,4.39163,2288.5,2287.8,1.14811956]
[1725708404502,1.09263,2288.4,2287.8,1.14811956]
[1725708404701,0.43714,2287.9,2287.8,0.378]
[1725708405603,0.7468,2288.1,2287.8,0.378]
[1725708405604,0.43714,2288.0,2287.8,0.378]
[1725708406006,0.3788,2287.9,2287.8,0.378]
[1725708408312,5.18715,2287.9,2287.6,0.43719]
[1725708408514,0.81595,2287.9,2287.7,1.26]
[1725708408814,0.81595,2287.9,2287.7,1.6515]
[1725708410506,0.3788,2287.9,2287.7,1.6515]
[1725708412420,0.3788,2287.9,2287.7,2.08868]
[1725708413712,0.3788,2287.9,2287.7,1.6515]
[1725708413918,0.81595,2287.9,2287.7,1.6515]
[1725708414411,0.43716,2287.8,2287.7,0.3915]
[1725708414818,0.43718,2287.7,2287.6,1.6355]
[1725708415018,0.82038,2287.7,2287.6,2.0041]
[1725708416120,0.3832,2287.7,2287.6,2.0041]
[1725708416619,0.7579,2287.7,2287.6,2.0041]
[1725708417519,1.19508,2287.7,2287.6,2.0041]
[1725708417819,1.19508,2287.7,2287.6,1.6286]
[1725708418223,1.19508,2287.7,2287.6,1.26]
[1725708418921,0.43721,2287.6,2287.4,5.2067]
[1725708419115,0.82861,2287.6,2287.4,5.2067]
[1725708419718,0.82861,2287.6,2287.4,1.9989]
[1725708420120,0.3914,2287.6,2287.4,1.9989]
[1725708420325,7.9704,2287.6,2287.2,0.3744]
[1725708420525,0.43726,2287.3,2287.1,3.5723]
[1725708420729,0.43726,2287.3,2287.1,4.0096]
[1725708420914,0.43726,2287.3,2287.1,3.5723]
[1725708421115,1.55628,2287.2,2287.1,3.5723]
[1725708421425,1.119,2287.2,2287.1,3.5723]
[1725708421725,0.3713,2287.2,2287.1,3.5723]
[1725708421915,0.43727,2287.3,2287.1,3.5723]
[1725708422718,1.55625,2287.4,2287.2,1.26]
[1725708423517,4.11,2287.8,2287.3,1.26]
[1725708423712,0.4372,2287.7,2287.4,1.21213]
[1725708423913,0.4372,2287.7,2287.5,0.3813]
[1725708424721,4.11,2287.8,2287.5,0.3813]
[1725708425025,4.78595,2287.9,2287.6,0.43718]
[1725708425322,0.43716,2287.8,2287.6,0.43718]
[1725708425523,0.43716,2287.8,2287.7,0.3597]
[1725708426826,4.78595,2287.9,2287.7,0.3597]
[1725708427130,0.43716,2287.8,2287.7,0.3597]
[1725708427323,4.78595,2287.9,2287.7,0.3597]
[1725708427725,0.43716,2287.8,2287.7,0.3597]
[1725708430425,4.78596,2287.9,2287.7,0.3597]
[1725708431321,0.43716,2287.8,2287.7,0.3597]
[1725708438135,0.4372,2287.6,2287.5,0.3813]
[1725708438431,5.44168,2287.9,2287.5,0.7468]
[1725708438631,0.43719,2287.7,2287.5,0.7468]
[1725708442935,0.43719,2287.7,2287.5,1.18401]
[1725708443824,0.43719,2287.7,2287.5,0.7468]
[1725708444234,0.3792,2287.8,2287.6,0.43719]
[1725708444531,0.43716,2287.8,2287.6,0.43719]
[1725708447030,0.80426,2287.8,2287.6,0.43719]
[1725708450849,0.80426,2287.8,2287.5,1.184]
[1725708451031,0.80426,2287.8,2287.6,0.4372]
[1725708453939,0.3671,2287.8,2287.6,0.4372]
[1725708454239,4.11,2288.3,2287.8,0.43716]
[1725708454240,0.43712,2288.0,2287.8,0.43716]
[1725708454445,0.43712,2288.0,2287.9,0.3883]
[1725708454646,4.80752,2288.0,2287.9,0.3883]
[1725708456843,0.43712,2288.0,2287.9,0.3883]
[1725708457135,3.64492,2288.0,2287.9,0.3883]
[1725708460154,0.43712,2288.0,2287.9,0.3883]
[1725708460446,0.43712,2288.0,2287.8,0.3916]
[1725708460649,0.3698,2287.9,2287.8,0.3916]
[1725708463450,0.80694,2287.9,2287.8,0.3916]
[1725708469044,0.3698,2287.9,2287.8,0.3916]
[1725708469245,0.43713,2288.0,2287.8,0.3916]
[1725708469554,3.8724193,2288.0,2287.8,0.3916]
[1725708470745,0.43713,2288.0,2287.8,0.3916]
[1725708472053,0.43713,2288.0,2287.8,0.7675]
[1725708474245,3.64493,2288.0,2287.8,0.7675]
[1725708474848,7.0802193,2288.0,2287.8,0.7675]
[1725708475642,3.64493,2288.0,2287.8,0.7675]
[1725708476555,3.64493,2288.0,2287.8,1.91561956]
[1725708477553,0.43713,2288.0,2287.8,1.91561956]
[1725708477752,3.64493,2288.0,2287.8,1.91561956]
[1725708478551,0.43716,2287.8,2287.7,1.14811956]
[1725708478752,0.43718,2287.7,2287.6,1.14811956]
[1725708478949,1.15758,2287.7,2287.6,3.33520862]
[1725708479455,0.7204,2287.7,2287.6,3.33520862]
[1725708480349,0.7204,2287.7,2287.6,3.90698379]
[1725708480549,0.7204,2287.7,2287.6,5.05443004]
[1725708480746,0.7204,2287.7,2287.6,3.90698379]
[1725708482148,0.7204,2287.7,2287.6,3.33454205]
[1725708482354,0.7204,2287.7,2287.6,3.90698379]
[1725708483159,1.15758,2287.7,2287.6,3.90698379]
[1725708483352,1.15758,2287.7,2287.6,3.33453043]
[1725708487248,1.15758,2287.7,2287.6,3.90698379]
[1725708487753,1.15758,2287.7,2287.6,5.05447823]
[1725708487959,1.15758,2287.7,2287.6,3.90698379]
[1725708488355,1.15758,2287.7,2287.6,3.33459881]
[1725708490556,1.15758,2287.7,2287.5,1.51320975]
[1725708492556,0.7204,2287.7,2287.5,1.51320975]
[1725708492865,1.1576,2287.7,2287.5,1.51320975]
[1725708494561,0.4372,2287.6,2287.5,1.51320975]
[1725708494967,1.15759,2287.7,2287.5,1.51320975]
[1725708496567,0.7204,2287.7,2287.5,1.95041975]
[1725708496763,1.15758,2287.7,2287.5,1.95041975]
[1725708497163,0.80058,2287.7,2287.5,1.95041975]
[1725708497963,0.4372,2287.6,2287.5,1.51320975]
[1725708498661,0.4372,2287.6,2287.5,4.2726831]
[1725708499967,0.4372,2287.6,2287.5,2.55278837]
[1725708500169,0.4372,2287.6,2287.5,4.27383144]
[1725708500362,0.4372,2287.6,2287.5,4.27375472]
[1725708501577,0.80059,2287.7,2287.5,4.27375472]
[1725708501756,0.80059,2287.7,2287.6,1.14739353]
[1725708501962,0.43717,2287.8,2287.6,8.27934254]
[1725708502160,0.43717,2287.8,2287.7,0.7326]
[1725708502664,0.43717,2287.8,2287.7,1.87994124]
[1725708502866,3.64495,2287.9,2287.7,1.87994124]
[1725708503272,0.43714,2288.0,2287.8,1.51674124]
[1725708503765,0.43714,2287.9,2287.8,1.51674124]
[1725708505767,0.43714,2287.9,2287.8,0.3694]
[1725708507367,3.4352893,2288.2,2287.8,10.7406]
[1725708507569,3.4352893,2288.3,2288.0,1.26]
[1725708507769,3.4352893,2288.4,2288.1,1.59019]
[1725708507963,5.6756793,2288.5,2288.1,1.59019]
[1725708508278,0.43707,2288.3,2288.1,1.59019]
[1725708508669,0.43707,2288.3,2288.1,1.1531]
[1725708509177,0.43707,2288.3,2288.1,1.5902]
[1725708509376,4.5830893,2288.5,2288.1,1.5902]
[1725708509573,0.43707,2288.3,2288.1,1.5902]
[1725708510676,0.43707,2288.3,2288.1,1.1531]
[1725708510878,0.43709,2288.2,2288.1,1.1531]
[1725708511272,0.43709,2288.2,2288.1,0.3751]
[1725708511774,0.43709,2288.2,2287.9,4.42893]
[1725708511972,0.43708,2288.3,2288.0,0.3655]
[1725708512171,0.43709,2288.2,2288.0,0.3655]
[1725708512373,0.81589,2288.2,2288.0,0.3655]
[1725708517078,0.3788,2288.2,2288.0,0.80262]
[1725708518790,0.43709,2288.2,2288.0,0.80262]
[1725708520587,0.43709,2288.2,2288.0,0.3655]
[1725708520886,0.43708,2288.3,2288.0,0.80262]
[1725708521085,0.3846,2288.2,2288.0,0.80262]
[1725708521388,0.7703,2288.2,2288.0,0.80262]
[1725708521793,0.3591,2288.1,2288.0,0.3655]
[1725708522380,0.3591,2288.1,2288.0,0.80262]
[1725708523080,0.3591,2288.1,2288.0,0.3655]
[1725708525390,0.3591,2288.1,2288.0,0.80262]
[1725708525985,0.3591,2288.1,2288.0,0.3655]
[1725708526489,0.7962,2288.1,2288.0,0.3655]
[1725708526693,0.7962,2288.1,2287.8,1.69716]
[1725708526887,0.7962,2288.1,2288.0,0.3683]
[1725708531285,1.20739,2288.2,2288.0,0.3683]
[1725708531696,1.20739,2288.2,2288.0,1.118]
[1725708533789,0.4371,2288.1,2288.0,1.118]
[1725708536196,0.7703,2288.2,2288.0,1.118]
[1725708536396,0.4371,2288.1,2288.0,1.118]
[1725708536703,1.2074,2288.2,2288.0,1.118]
[1725708536994,0.4371,2288.1,2288.0,1.118]
[1725708537594,1.2074,2288.2,2288.0,1.118]
[1725708537792,1.2074,2288.2,2288.0,1.55512]
[1725708538099,1.2074,2288.2,2288.0,1.118]
[1725708538798,0.4371,2288.1,2288.0,1.118]
[1725708540195,4.3704,2288.1,2287.6,4.35514124]
[1725708540502,4.3704,2288.1,2287.4,1.87604124]
[1725708540503,1.09286,2287.9,2287.4,1.87604124]
[1725708540700,1.09286,2287.9,2287.4,0.7447]
[1725708540701,0.43721,2287.6,2287.4,0.7447]
[1725708540903,0.3848,2287.5,2287.4,0.7447]
[1725708543811,0.3848,2287.5,2287.4,1.89204124]
[1725708544012,0.7572,2287.8,2287.4,1.89204124]
[1725708544209,0.7572,2287.8,2287.6,1.69719]
[1725708544413,3.2078,2288.0,2287.8,0.43716]
[1725708544611,0.83191,2288.1,2287.9,0.38]
[1725708545413,0.3948,2288.1,2287.9,0.38]
[1725708545810,0.3948,2288.1,2287.9,1.52734124]
[1725708546114,8.96502172,2288.7,2288.0,7.81688257]
[1725708546308,10.12822172,2288.7,2288.4,0.43705]
[1725708546613,10.12822172,2288.7,2288.5,0.3705]
[1725708548121,9.69122172,2288.7,2288.5,0.3705]
[1725708550410,10.12821172,2288.7,2288.5,0.3705]
[1725708550610,9.69122172,2288.7,2288.5,0.3705]
[1725708551012,10.12821172,2288.7,2288.5,0.3705]
[1725708556824,9.69122172,2288.7,2288.5,0.3705]
[1725708557426,9.69122172,2288.7,2288.5,0.80752]
[1725708557725,10.12821172,2288.7,2288.5,0.3705]
[1725708558324,9.69122172,2288.7,2288.5,0.80752]
[1725708559324,9.69122172,2288.7,2288.5,0.3705]
[1725708559527,9.69122172,2288.7,2288.6,0.43701]
[1725708564933,10.12823172,2288.7,2288.5,0.3705]
[1725708565822,10.12823172,2288.7,2288.5,0.80752]
[1725708566026,9.69122172,2288.7,2288.6,0.43701]
[1725708567035,8.96502172,2288.7,2288.6,0.43701]
[1725708567534,4.00608,2288.8,2288.6,0.81051]
[1725708567926,4.00608,2288.8,2288.6,0.3735]
[1725708568530,4.00608,2288.8,2288.6,0.81051]
[1725708569627,0.79828,2288.8,2288.6,0.81051]
[1725708569930,4.00608,2288.8,2288.6,0.81051]
[1725708571940,3.5691,2288.8,2288.6,0.3735]
[1725708572437,3.5691,2288.8,2288.6,0.81049]
[1725708572637,0.3613,2288.8,2288.7,0.43699]
[1725708573033,0.3613,2288.8,2288.7,0.81199]
[1725708573829,0.7287,2288.9,2288.7,5.18079]
[1725708574030,1.1169,2288.9,2288.7,0.81199]
[1725708574237,1.1169,2288.9,2288.8,0.3749]
[1725708574644,1.55385,2288.9,2288.8,0.3749]
[1725708575137,1.1169,2288.9,2288.8,0.3749]
[1725708576141,0.7593,2288.9,2288.8,0.3749]
[1725708576739,1.19625,2288.9,2288.8,0.3749]
[1725708578432,1.19625,2288.9,2288.7,0.375]
[1725708578645,1.19625,2288.9,2288.7,0.81198]
[1725708578842,1.19625,2288.9,2288.7,1.19498]
[1725708579643,1.48156,2289.2,2288.8,4.80576]
[1725708579841,0.43694,2289.0,2288.8,0.43696]
[1725708580846,0.7755,2289.1,2288.9,0.43694]
[1725708581248,0.7755,2289.1,2289.0,0.3929]
[1725708581249,1.21241,2289.1,2289.0,0.3929]
[1725708587149,1.21241,2289.1,2288.8,1.26]
[1725708587351,1.21241,2289.1,2288.8,1.6303]
[1725708587538,0.7755,2289.1,2288.9,0.43695]
[1725708591254,1.21242,2289.1,2288.9,0.43695]
[1725708594753,0.7755,2289.1,2288.9,0.43695]
[1725708595056,1.21241,2289.1,2288.9,0.43695]
[1725708597251,0.7755,2289.1,2288.9,4.3688]
[1725708597459,0.7755,2289.1,2288.9,4.80574]
[1725708598855,0.7755,2289.1,2288.9,0.43694]
[1725708603046,1.09239,2288.9,2288.4,8.54799963]
[1725708603259,0.7454,2288.8,2288.5,1.26]
[1725708603448,4.03663,2289.1,2288.6,1.26]
[1725708603649,0.7607,2289.0,2288.8,0.43696]
[1725708604057,0.7607,2289.0,2288.9,0.3649]
[1725708604357,1.19763,2289.0,2288.7,0.43698]
[1725708604659,0.43698,2288.8,2288.5,1.58057963]
[1725708604861,0.7568,2288.7,2288.5,2.84057963]
[1725708605153,0.388,2288.6,2288.3,2.76845963]
[1725708605847,0.43703,2288.5,2288.3,2.40355963]
[1725708606254,0.43703,2288.5,2288.3,1.26]
[1725708606452,0.3727,2288.4,2288.3,1.26]
[1725708608246,0.3727,2288.4,2288.3,1.69707]
[1725708608448,0.3727,2288.4,2288.3,2.07217]
[1725708608858,0.3727,2288.4,2288.3,1.6351]
[1725708610759,0.3727,2288.4,2288.3,2.07217]
[1725708611057,0.388,2288.6,2288.5,0.43703]
[1725708611265,0.388,2288.6,2288.5,1.69703]
[1725708613966,0.82501,2288.6,2288.5,1.26]
[1725708614155,0.388,2288.6,2288.5,1.69703]
[1725708614961,3.2078,2288.8,2288.5,5.6296]
[1725708615263,0.3613,2288.9,2288.7,1.26]
[1725708615755,0.79826,2288.9,2288.8,0.367]
[1725708617859,0.43694,2289.0,2288.8,0.80397]
[1725708618063,1.18092,2289.1,2288.9,1.69695]
[1725708618258,1.18092,2289.1,2288.9,1.26]
[1725708618659,1.18092,2289.1,2288.9,1.69695]
[1725708619272,0.3576,2289.2,2289.0,0.43693]
[1725708619559,0.3868,2289.3,2289.1,1.69691]
[1725708619762,1.156,2289.3,2289.1,1.26]
[1725708620664,1.156,2289.3,2289.1,2.08821]
[1725708622754,4.3638,2289.3,2289.1,2.08821]
[1725708623158,4.3638,2289.3,2289.1,0.3913]
[1725708623366,4.3638,2289.3,2288.8,4.92313945]
[1725708623367,0.43692,2289.1,2288.8,2.40355963]
[1725708623568,0.3834,2289.0,2288.8,2.08946]
[1725708623864,3.9694,2289.3,2288.8,2.08946]
[1725708623865,0.4369,2289.2,2288.9,0.43695]
[1725708624166,3.9694,2289.3,2289.1,0.4369]
[1725708624561,3.2078,2289.3,2289.2,0.3925]
[1725708626065,0.82026,2289.4,2289.2,0.3925]
[1725708628064,0.43686,2289.4,2289.2,0.82939]
[1725708628467,0.43686,2289.4,2289.2,0.3925]
[1725708629369,0.43686,2289.4,2289.2,1.6525]
[1725708630869,0.43686,2289.4,2289.2,2.08939]
[1725708631659,0.82695,2289.5,2289.2,2.08939]
[1725708632269,0.43686,2289.4,2289.2,2.08939]
[1725708632566,0.7503,2289.6,2289.3,1.26]
[1725708632775,0.43684,2289.5,2289.4,0.7334]
[1725708633165,0.43684,2289.5,2289.3,1.26]
[1725708633569,0.3778,2289.4,2289.3,1.26]
[1725708634572,1.1355,2289.4,2289.3,1.26]
[1725708635582,1.1355,2289.4,2289.3,1.69688]
[1725708635871,1.1355,2289.4,2289.3,1.26]
[1725708636068,1.1355,2289.4,2289.3,1.69688]
[1725708636575,0.43683,2289.6,2289.3,1.69688]
[1725708636976,1.55961,2289.7,2289.4,0.43685]
[1725708637275,1.1228,2289.7,2289.5,1.26]
[1725708637578,5.628,2289.6,2289.1,1.14355963]
[1725708637872,5.628,2289.6,2288.7,1.26]
[1725708637873,5.55999,2289.4,2288.7,1.26]
[1725708638077,0.43697,2288.8,2288.6,1.26]
[1725708638371,0.7876,2288.7,2288.6,1.69701]
[1725708639074,0.3915,2288.7,2288.6,1.69701]
[1725708640371,0.83306,2288.9,2288.7,0.43699]
[1725708640579,1.21726,2288.9,2288.7,0.79859]
[1725708641375,0.437,2288.7,2288.4,3.2078]
[1725708641574,0.437,2288.7,2288.6,1.26]
[1725708641776,0.43698,2288.8,2288.6,1.69701]
[1725708641977,0.43698,2288.8,2288.6,1.26]
[1725708642275,0.3672,2289.0,2288.6,1.26]
[1725708642587,0.43693,2289.1,2288.9,0.43694]
[1725708642873,0.43693,2289.1,2289.0,0.3616]
[1725708647484,0.43695,2289.0,2288.8,1.6341]
[1725708647687,0.43695,2289.0,2288.8,2.0004]
[1725708647986,0.383,2288.9,2288.8,1.6263]
[1725708648185,3.64473,2289.1,2288.8,2.06326]
[1725708648377,0.43693,2289.0,2288.8,2.06326]
[1725708648777,4.02772,2289.1,2288.8,2.06326]
[1725708649677,3.64472,2289.1,2288.9,0.43695]
[1725708649877,3.64472,2289.1,2288.9,0.81255]
[1725708650277,0.43691,2289.1,2288.9,0.81255]
[1725708651081,0.8211,2289.2,2289.0,0.43693]
[1725708651277,0.43688,2289.3,2289.1,0.43691]
[1725708651489,0.43688,2289.3,2289.2,0.3603]
[1725708655094,0.7675,2289.4,2289.2,0.79718]
[1725708655288,1.20436,2289.4,2289.2,0.79718]
[1725708656095,1.20436,2289.4,2289.2,0.3603]
[1725708656496,4.41216,2289.4,2289.2,0.3603]
[1725708656689,1.20436,2289.4,2289.2,0.3603]
[1725708657091,0.43689,2289.2,2288.9,3.21609963]
[1725708657290,0.3932,2289.1,2289.0,0.385]
[1725708657490,0.83011,2289.1,2289.0,0.385]
[1725708657789,0.43693,2289.0,2288.9,2.40355963]
[1725708657990,0.7714,2289.0,2288.9,2.40355963]
[1725708659096,1.20833,2289.0,2288.9,2.40355963]
[1725708659297,1.20833,2289.0,2288.9,1.14355963]
[1725708659498,1.20835,2289.0,2288.8,0.7502]
[1725708659696,1.20835,2289.0,2288.8,1.89375963]
[1725708660301,1.20835,2289.0,2288.8,0.7502]
[1725708660501,0.3932,2289.1,2288.9,1.69694]
[1725708660696,0.4369,2289.2,2289.0,0.43693]
[1725708660897,0.4369,2289.2,2288.9,1.69694]
[1725708661297,0.43692,2289.1,2288.9,1.69694]
[1725708663002,0.43691,2289.2,2288.9,1.69694]
[1725708663603,0.43691,2289.2,2289.0,0.43693]
[1725708663797,1.18319,2289.3,2289.0,0.43693]
[1725708664004,1.18319,2289.3,2289.1,0.3916]
[1725708664402,1.18319,2289.3,2289.1,2.4485]
[1725708664598,0.7463,2289.3,2289.1,2.4485]
[1725708664797,0.43679,2289.8,2289.5,0.43682]
[1725708665003,1.57758,2289.9,2289.6,2.06781]
[1725708665404,1.57758,2289.9,2289.7,0.361]
[1725708665598,1.57757,2289.9,2289.7,0.361]
[1725708665798,0.43678,2289.8,2289.7,0.361]
[1725708666014,1.1408,2289.9,2289.7,0.361]
[1725708666703,0.43678,2289.8,2289.7,0.361]
[1725708667403,0.43678,2289.8,2289.6,1.631]
[1725708668712,1.1408,2289.9,2289.6,1.631]
[1725708668899,0.43679,2289.8,2289.6,1.631]
[1725708669710,0.43678,2289.8,2289.6,1.631]
[1725708669907,1.57758,2289.9,2289.6,1.631]
[1725708670103,1.1408,2289.9,2289.6,1.631]
[1725708670302,0.43679,2289.8,2289.6,1.631]
[1725708670610,1.1408,2289.9,2289.6,1.631]
[1725708671002,0.43679,2289.8,2289.6,1.631]
[1725708676808,1.1408,2289.9,2289.4,0.3907]
[1725708677105,2.23273,2289.9,2289.4,0.3907]
[1725708677306,0.43681,2289.7,2289.4,0.3907]
[1725708677507,0.43681,2289.7,2289.4,0.82756]
[1725708678715,0.43681,2289.7,2289.5,1.26]
[1725708679107,0.43682,2289.6,2289.5,1.26]
[1725708682007,0.43682,2289.6,2289.1,1.14453971]
[1725708682008,0.43689,2289.3,2289.1,1.14453971]
[1725708682312,0.43689,2289.3,2289.0,0.80783]
[1725708684912,2.2273,2289.5,2289.0,0.3709]
[1725708685108,0.4369,2289.2,2289.0,0.80783]
[1725708685718,0.4369,2289.2,2289.0,0.3709]
[1725708685914,0.43691,2289.1,2289.0,0.3709]
[1725708686418,0.43703,2288.6,2288.3,5.45664]
[1725708686625,0.43704,2288.5,2288.3,1.26]
[1725708686828,0.83104,2288.5,2288.3,1.26]
[1725708687014,0.43705,2288.4,2288.3,1.26]
[1725708687422,0.83104,2288.5,2288.3,1.26]
[1725708687914,0.83104,2288.5,2288.2,0.7679]
[1725708688115,0.394,2288.5,2288.2,0.7679]
[1725708688319,3.2078,2288.8,2288.4,0.43704]
[1725708688526,3.2078,2288.8,2288.3,3.02]
[1725708688527,0.394,2288.8,2288.3,3.02]
[1725708688818,0.394,2288.8,2288.5,0.43703]
[1725708689221,0.394,2288.8,2288.6,0.371]
[1725708689526,0.7543,2289.0,2288.7,0.3584]
[1725708689728,0.82953,2289.0,2288.7,0.3584]
[1725708690729,0.3926,2289.0,2288.7,0.3584]
[1725708691120,0.3926,2289.0,2288.7,0.79538]
[1725708691624,0.3926,2289.0,2288.7,0.3584]
[1725708692217,0.82953,2289.0,2288.7,0.3584]
[1725708693429,0.3926,2289.0,2288.7,0.79538]
[1725708693821,0.3911,2289.1,2288.7,0.3584]
[1725708694015,3.64469,2289.2,2288.8,3.83426]